[Event "ISR-chT 2019"]
[Site "Israel"]
[Date "2019.02.22"]
[Round "7.32"]
[White "Rechlis, Gad"]
[Black "Dvoirys, Semen I."]
[Result "0-1"]
[ECO "A25"]
[WhiteElo "2526"]
[BlackElo "2519"]
[Annotator "ChessBase"]
[PlyCount "124"]
[EventDate "2019.01.04"]
[EventType "team-tourn"]
[EventCountry "ISR"]
[SourceTitle "playchess.com"]
[Source "ChessBase"]
[SourceQuality "1"]
[TimeControl "40/5400+30:1800+30"]

1. c4 {[%emt 0:05:30]} e5 {[%emt 0:00:00]} 2. g3 {[%emt 0:00:16]} Nc6 {[%emt 0:00:00]} 3. Bg2 {[%emt 0:00:05]} g6 {[%emt 0:00:04]} 4. Nc3 {[%emt 0:00:07]} Bg7 {[%emt 0:00:04]} 5. e3 {[%emt 0:00:13]} f5 {[%emt 0:00:48]} 6. d3 {[%emt 0:00:50]} Nf6 {[%emt 0:00:09]} 7. Nge2 {[%emt 0:00:05]} O-O {[%emt 0:00:10]} 8. Rb1 {[%emt 0:01:20]} Ne7 {[%emt 0:11:57]} 9. O-O {[%emt 0:00:37]} g5 {[%emt 0:00:54]} 10. f4 {[%emt 0:00:43]} exf4 {[%emt 0:17:00]} 11. exf4 {[%emt 0:00:31]} g4 {[%emt 0:00:19]} 12. Be3 {[%emt 0:00:26]} d6 {[%emt 0:06:12]} 13. Re1 {[%emt 0:00:28]} Ng6 {[%emt 0:03:21]} 14. Bf2 {[%emt 0:00:23]} h5 {[%emt 0:04:06]} 15. Nd4 {[%emt 0:00:21]} h4 {[%emt 0:00:08]} 16. Ne6 {[%emt 0:09:50]} Bxe6 {[%emt 0:00:13]} 17. Rxe6 {[%emt 0:00:02]} Qd7 {[%emt 0:00:45]} 18. Qe2 {[%emt 0:00:03]} c6 {[%emt 0:02:09]} 19. Re1 {[%emt 0:00:26]} Rfe8 {[%emt 0:13:10]} 20. a4 {[%emt 0:36:50]} Kf7 {[%emt 0:01:51]} 21. Rxe8 {[%emt 0:00:22]} Rxe8 {[%emt 0:00:25]} 22. Qd2 {[%emt 0:00:22]} Rxe1+ {[%emt 0:01:09]} 23. Qxe1 {[%emt 0:00:01]} a6 {[%emt 0:01:15]} 24. a5 {[%emt 0:02:03]} h3 {[%emt 0:02:47]} 25. Bh1 {[%emt 0:03:26]} Qe6 {[%emt 0:02:26]} 26. Qd1 {[%emt 0:01:42]} Nd7 {[%emt 0:05:34]} 27. Na4 {[%emt 0:04:20]} Ne7 {[%emt 0:03:08]} 28. Kf1 {[%emt 0:00:31]} d5 {[%emt 0:00:48]} 29. Qb3 {[%emt 0:02:22]} dxc4 {[%emt 0:01:07]} 30. dxc4 {[%emt 0:00:16]} Nc8 {[%emt 0:02:03]} 31. Qd3 {[%emt 0:07:50]} Nd6 {[%emt 0:01:45]} 32. b3 {[%emt 0:00:08]} Ke8 {[%emt 0:01:30]} 33. Bd4 {[%emt 0:02:42]} Bxd4 {[%emt 0:02:33]} 34. Qxd4 {[%emt 0:00:02]} Kd8 {[%emt 0:01:07]} 35. Kf2 {[%emt 0:01:05]} Kc7 {[%emt 0:00:40]} 36. Qg7 {[%emt 0:01:22]} Kd8 {[%emt 0:04:28]} 37. Qh8+ {[%emt 0:05:39]} Kc7 {[%emt 0:00:24]} 38. Qd4 {[%emt 0:01:20]} Kd8 {[%emt 0:03:55]} 39. Nc3 {[%emt 0:01:36]} Kc7 {[%emt 0:00:23]} 40. Na4 {[%emt 0:04:15]} Qe7 {[%emt 0:06:07]} 41. Nb6 {[%emt 0:36:05]} Nf7 {[%emt 0:16:18]} 42. b4 {[%emt 0:00:00]} Qe6 {[%emt 0:03:07]} 43. Na8+ {[%emt 0:00:00]} Kc8 {[%emt 0:00:47]} 44. Nb6+ {[%emt 0:00:00]} Nxb6 {[%emt 0:03:17]} 45. axb6 {[%emt 0:00:00]} Nd6 {[%emt 0:01:13]} 46. Qg7 {[%emt 0:00:00]} Qd7 {[%emt 0:00:33]} 47. Qd4 {[%emt 0:00:00]} Ne4+ {[%emt 0:01:06]} 48. Ke3 {[%emt 0:00:00]} Qxd4+ {[%emt 0:00:14]} 49. Kxd4 {[%emt 0:00:00]} Nf2 {[%emt 0:00:03]} 50. Bxc6 {[%emt 0:00:00]} bxc6 {[%emt 0:00:11]} 51. Ke5 {[%emt 0:00:00]} Nd3+ {[%emt 0:02:15]} 52. Kxf5 {[%emt 0:00:00]} Nxb4 {[%emt 0:00:10]} 53. Ke4 {[%emt 0:00:00]} a5 {[%emt 0:01:45]} 54. Kd4 {[%emt 0:09:31]} a4 {[%emt 0:01:56]} 55. Kc3 {[%emt 0:01:24]} c5 {[%emt 0:00:59]} 56. Kb2 {[%emt 0:00:00]} Nd3+ {[%emt 0:00:43]} 57. Ka3 {[%emt 0:00:00]} Kb7 {[%emt 0:01:07]} 58. f5 {[%emt 0:00:15]} Kxb6 {[%emt 0:00:18]} 59. f6 {[%emt 0:00:08]} Ne5 {[%emt 0:00:08]} 60. Kxa4 {[%emt 0:00:05]} Ka6 {[%emt 0:00:14]} 61. Kb3 {[%emt 0:00:39]} Ka5 {[%emt 0:00:47]} 62. Kc3 {[%emt 0:00:59]} Ka4 {[%emt 0:00:09]} 0-1

[Event "ISR-chT 2019"]
[Site "Israel"]
[Date "2019.02.22"]
[Round "7.34"]
[White "Drori, Saar"]
[Black "Shvayger, Yuliya"]
[Result "1/2-1/2"]
[ECO "B32"]
[WhiteElo "2383"]
[BlackElo "2374"]
[Annotator "NA"]
[PlyCount "66"]
[EventDate "2019.01.04"]
[EventType "team-tourn"]
[EventCountry "ISR"]
[SourceTitle "playchess.com"]
[Source "ChessBase"]
[SourceQuality "1"]
[TimeControl "40/5400+30:1800+30"]

1. e4 {[%emt 0:00:00]} c5 {[%emt 0:00:00]} 2. Nf3 {[%emt 0:00:00]} Nc6 {[%emt 0:00:00]} 3. d4 {[%emt 0:00:51]} cxd4 {[%emt 0:00:01]} 4. Nxd4 {[%emt 0:00:08]} e5 {[%emt 0:00:16]} 5. Nb5 {[%emt 0:03:26]} d6 {[%emt 0:03:04]} 6. c4 {[%emt 0:00:25]} Be7 {[%emt 0:01:38]} 7. N1c3 {[%emt 0:05:17]} a6 {[%emt 0:00:24]} 8. Na3 {[%emt 0:00:05]} f5 {[%emt 0:00:08]} 9. exf5 {[%emt 0:05:10]} Bxf5 {[%emt 0:00:04]} 10. Be3 {[%emt 0:01:51] B32: Sicilian: Löwenthal and Kalashnikov Variations} (10. Nc2 Nf6 11. Bd3 Be6 12. O-O O-O 13. b3 Qd7 14. Bb2 Bd8 15. Ne4 Bb6 16. Qe2 Rad8 17. Kh1 Nxe4 18. Bxe4 {½-½ (50) Yu,Y (2764)-Potapov,P (2516) St Petersburg 2018}) 10... Nf6 {[%emt 0:02:26]} 11. Be2 {[%emt 0:08:10]} O-O {[%emt 0:00:51]} 12. O-O {[%emt 0:00:20]} Qd7 {[%emt 0:09:18]} 13. Rc1 {[%emt 0:08:55]} Kh8 $146 {[%emt 0:01:24]} ({Predecessor:} 13... Rae8 14. Nd5 Nxd5 15. cxd5 Nb8 16. Nc4 b5 {1-0 (41) Bakos,L (2032)-Toth,D (2240) Eger 2008}) 14. Nd5 {[%emt 0:12:14]} Rae8 {[%emt 0:01:49]} 15. Nb6 {[%emt 0:08:26]} Qd8 {[%emt 0:07:29]} 16. Nb1 {[%emt 0:01:34]} Ne4 {[%emt 0:13:28]} 17. Nd5 {[%emt 0:07:34]} Bg5 {[%emt 0:01:09]} 18. Nbc3 {[%emt 0:00:52]} Nd4 {[%emt 0:01:31]} 19. Bd3 {[%emt 0:13:15]} Nxc3 {[%emt 0:05:05]} 20. Rxc3 {[%emt 0:02:03]} Bxe3 {[%emt 0:04:16]} 21. fxe3 {[%emt 0:01:22]} Bxd3 {[%emt 0:00:46]} 22. Rxd3 {[%emt 0:01:51]} Rxf1+ {[%emt 0:00:17]} 23. Qxf1 {[%emt 0:00:07]} Rf8 {[%emt 0:00:04]} 24. Qd1 {[%emt 0:02:22]} Ne6 $14 {[%emt 0:11:07]} 25. Qg4 {[%emt 0:00:49]} Qe8 {[%emt 0:02:05]} 26. h3 {[%emt 0:03:34]} Qf7 {[%emt 0:00:57]} 27. Rd2 {[%emt 0:00:28]} Nc5 {[%emt 0:11:07]} 28. Kh2 {[%emt 0:02:41]} Qf1 {[%emt 0:07:13]} 29. b4 {[%emt 0:01:51]} Nd3 {[%emt 0:04:24]} 30. Rd1 {[%emt 0:00:50]} Ne1 {[%emt 0:00:19]} 31. Rd2 {[%emt 0:03:49]} Nd3 {[%emt 0:01:39]} 32. Rd1 {[%emt 0:00:07]} Ne1 {[%emt 0:00:06]} 33. Rd2 {[%emt 0:00:04]} Nd3 {[%emt 0:00:58]} 1/2-1/2

[Event "ISR-chT 2019"]
[Site "Israel"]
[Date "2019.02.22"]
[Round "7.35"]
[White "Vydeslaver, Alik"]
[Black "Botvinnik, Mikhail"]
[Result "1-0"]
[ECO "A89"]
[WhiteElo "2388"]
[BlackElo "2368"]
[Annotator "NA"]
[PlyCount "75"]
[EventDate "2019.01.04"]
[EventType "team-tourn"]
[EventCountry "ISR"]
[SourceTitle "playchess.com"]
[Source "ChessBase"]
[SourceQuality "1"]
[TimeControl "40/5400+30:1800+30"]

1. c4 {[%emt 0:00:12]} f5 {[%emt 0:01:54]} 2. Nc3 {[%emt 0:01:24]} Nf6 {[%emt 0:00:10]} 3. g3 {[%emt 0:00:45]} g6 {[%emt 0:00:18]} 4. Bg2 {[%emt 0:00:10]} Bg7 {[%emt 0:00:09]} 5. Nf3 {[%emt 0:00:31]} O-O {[%emt 0:00:14]} 6. O-O {[%emt 0:00:08]} d6 {[%emt 0:04:09]} 7. d4 {[%emt 0:00:33]} Nc6 {[%emt 0:02:00]} 8. d5 {[%emt 0:05:17]} Na5 {[%emt 0:00:14]} 9. Nd2 {[%emt 0:00:52]} c5 {[%emt 0:02:16]} 10. a3 {[%emt 0:25:02]} Ng4 {[%emt 0:10:34]} 11. e3 {[%emt 0:20:53]} b6 {[%emt 0:15:11]} 12. Qc2 {[%emt 0:08:36]} Bd7 {[%emt 0:06:03]} 13. h3 {[%emt 0:05:32]} Ne5 {[%emt 0:07:01]} 14. b3 {[%emt 0:00:07]} a6 {[%emt 0:01:34]} 15. f4 {[%emt 0:01:07]} Nf7 {[%emt 0:00:11]} 16. Bb2 {[%emt 0:01:13]} b5 {[%emt 0:02:23]} 17. Ne2 $14 {[%emt 0:03:28]} Bxb2 {[%emt 0:01:00]} 18. Qxb2 {[%emt 0:00:02]} Rb8 {[%emt 0:02:03]} 19. Qc3 {[%emt 0:01:36]} e5 {[%emt 0:05:37]} 20. dxe6 {[%emt 0:05:35]} Bxe6 {[%emt 0:00:11]} 21. e4 {[%emt 0:00:01]} Qc7 {[%emt 0:09:08]} 22. exf5 {[%emt 0:01:52]} gxf5 {[%emt 0:00:08]} 23. Rfe1 {[%emt 0:01:58]} Rfe8 {[%emt 0:03:20]} 24. g4 {[%emt 0:04:01]} bxc4 {[%emt 0:03:08]} 25. gxf5 {[%emt 0:01:06]} Bxf5 {[%emt 0:00:58]} 26. Ng3 {[%emt 0:00:07]} Bg6 {[%emt 0:02:35]} 27. f5 {[%emt 0:01:52]} Ne5 {[%emt 0:01:33]} 28. fxg6 {[%emt 0:00:30]} Nxb3 {[%emt 0:00:40]} 29. Bd5+ {[%emt 0:03:06]} Kh8 {[%emt 0:00:41]} 30. Nxc4 {[%emt 0:00:44]} Nd4 {[%emt 0:07:48]} 31. Nxe5 {[%emt 0:01:40]} dxe5 {[%emt 0:00:29]} 32. Bf7 {[%emt 0:02:27]} Qc6 {[%emt 0:04:22]} 33. Bxe8 {[%emt 0:00:36]} Rxe8 {[%emt 0:00:11]} 34. g7+ {[%emt 0:00:41]} Kxg7 {[%emt 0:00:15]} 35. Rf1 {[%emt 0:00:06]} Re6 {[%emt 0:01:34]} 36. Qe3 {[%emt 0:01:29]} Rg6 {[%emt 0:01:07]} 37. Kh2 {[%emt 0:00:21]} Kg8 {[%emt 0:01:32]} 38. Rae1 {[%emt 0:00:31]} 1-0

[Event "ISR-chT 2019"]
[Site "Israel"]
[Date "2019.02.22"]
[Round "7.36"]
[White "Bitensky, Igor"]
[Black "Klenburg, Michael"]
[Result "0-1"]
[ECO "C02"]
[WhiteElo "2375"]
[BlackElo "2359"]
[Annotator "NA"]
[PlyCount "130"]
[EventDate "2019.01.04"]
[EventType "team-tourn"]
[EventCountry "ISR"]
[SourceTitle "playchess.com"]
[Source "ChessBase"]
[SourceQuality "1"]
[TimeControl "40/5400+30:1800+30"]

1. e4 {[%emt 0:00:00]} e6 {[%emt 0:00:00]} 2. d4 {[%emt 0:03:08]} d5 {[%emt 0:00:01]} 3. e5 {[%emt 0:00:18]} c5 {[%emt 0:00:23]} 4. c3 {[%emt 0:00:03]} Qb6 {[%emt 0:00:17]} 5. Nf3 {[%emt 0:00:02]} Nc6 {[%emt 0:00:09]} 6. Na3 {[%emt 0:00:58]} cxd4 {[%emt 0:02:10]} 7. cxd4 {[%emt 0:00:43]} Bd7 {[%emt 0:03:42]} 8. Nc2 {[%emt 0:07:21]} Rc8 {[%emt 0:04:13] C02: French: Advance Variation} 9. Bd3 {[%emt 0:06:17]} (9. Be2 Nb4 10. Ne3 Bb5 11. O-O Bxe2 12. Qxe2 Qa6 13. Qxa6 Nxa6 14. Bd2 Bb4 15. Rfc1 Ne7 16. Rxc8+ Nxc8 {½-½ (56) Predke,A (2622)-Riazantsev,A (2649) St Petersburg 2018}) 9... Nb4 {[%emt 0:04:04]} 10. Nxb4 {[%emt 0:00:49]} Bxb4+ {[%emt 0:00:08]} 11. Bd2 {[%emt 0:00:59]} Bb5 {[%emt 0:04:20]} 12. Bxb5+ {[%emt 0:32:35]} Qxb5 {[%emt 0:01:05]} 13. Qb3 $146 {[%emt 0:00:03]} ({Predecessor:} 13. Bxb4 Qxb4+ {½-½ (22) Bit Narva,D (1996)-Bergstrom,R (2262) Stockholm 2014}) 13... Bxd2+ {[%emt 0:05:35]} 14. Nxd2 {[%emt 0:00:47]} Qa6 {[%emt 0:01:04]} 15. a4 {[%emt 0:06:03]} Ne7 {[%emt 0:03:18]} 16. Qb5+ {[%emt 0:00:16]} Rc6 {[%emt 0:00:53]} 17. Nb3 {[%emt 0:02:23]} Qb6 {[%emt 0:04:21]} 18. O-O {[%emt 0:04:15]} a6 {[%emt 0:02:02]} 19. Qd3 {[%emt 0:04:31]} Rc4 {[%emt 0:02:10]} 20. Rfd1 {[%emt 0:12:43]} Nc6 {[%emt 0:03:56]} 21. a5 {[%emt 0:02:07]} Qb5 {[%emt 0:03:23]} 22. Ra3 {[%emt 0:02:11]} O-O {[%emt 0:01:44]} 23. h4 {[%emt 0:02:09] [#]} (23. Qd2 $17) 23... Nb4 $19 {[%emt 0:01:57]} 24. Qg3 {[%emt 0:00:55]} Nc2 {[%emt 0:00:18]} 25. Ra2 {[%emt 0:00:37]} h6 {[%emt 0:02:51]} 26. Kh2 {[%emt 0:00:02]} Rfc8 {[%emt 0:01:01]} 27. f4 {[%emt 0:02:21]} Rb4 {[%emt 0:04:13]} 28. Rd3 {[%emt 0:00:00]} Rcc4 {[%emt 0:01:24]} 29. f5 {[%emt 0:02:08]} Nxd4 {[%emt 0:02:07]} 30. Nxd4 {[%emt 0:01:08]} Rxd4 {[%emt 0:00:08]} 31. Rxd4 {[%emt 0:00:01]} Rxd4 {[%emt 0:00:07]} 32. fxe6 {[%emt 0:05:32]} fxe6 {[%emt 0:00:22]} 33. Ra3 {[%emt 0:00:05]} Qc4 {[%emt 0:07:26]} 34. Kh3 {[%emt 0:02:19]} Qc1 {[%emt 0:04:45]} 35. Kh2 {[%emt 0:00:09]} Rd1 {[%emt 0:01:04]} 36. Qf2 {[%emt 0:01:15]} Rh1+ {[%emt 0:01:39]} 37. Kg3 {[%emt 0:00:00]} Qc4 {[%emt 0:00:16]} 38. Qf4 {[%emt 0:00:58]} Qxf4+ {[%emt 0:03:29]} 39. Kxf4 {[%emt 0:00:01]} Rxh4+ {[%emt 0:00:28]} 40. Kf3 {[%emt 0:00:01]} Rb4 {[%emt 0:00:52]} 41. Rc3 {[%emt 0:01:50]} h5 {[%emt 0:01:27]} 42. Rc7 {[%emt 0:01:38]} Kf8 {[%emt 0:00:08]} 43. Ke3 {[%emt 0:09:21]} Rxb2 {[%emt 0:01:33]} 44. Kf4 {[%emt 0:02:59]} Rxg2 {[%emt 0:01:56]} 45. Rxb7 {[%emt 0:01:04]} Rg4+ {[%emt 0:00:35]} 46. Kf3 {[%emt 0:02:02]} Re4 {[%emt 0:01:16]} 47. Rb6 {[%emt 0:01:15]} Rxe5 {[%emt 0:00:05]} 48. Rxa6 {[%emt 0:00:03]} d4 {[%emt 0:01:05]} 49. Ra8+ {[%emt 0:02:12]} Kf7 {[%emt 0:00:05]} 50. a6 {[%emt 0:00:02]} d3 {[%emt 0:06:18]} 51. Ra7+ {[%emt 0:05:46]} Kf6 {[%emt 0:01:41]} 52. Rd7 {[%emt 0:00:33]} Ra5 {[%emt 0:00:10]} 53. a7 {[%emt 0:00:02]} d2 {[%emt 0:00:25]} 54. Ke2 {[%emt 0:00:07]} Ra2 {[%emt 0:00:10]} 55. Kd1 {[%emt 0:00:57]} g5 {[%emt 0:00:22]} 56. Ke2 {[%emt 0:01:02]} h4 {[%emt 0:00:30]} 57. Rh7 {[%emt 0:00:28]} e5 {[%emt 0:00:30]} 58. Kd1 {[%emt 0:00:19]} Kf5 {[%emt 0:01:07]} 59. Ke2 {[%emt 0:00:13]} Kg4 {[%emt 0:00:36]} 60. Kd1 {[%emt 0:01:57]} h3 {[%emt 0:00:21]} 61. Ke2 {[%emt 0:01:05]} Kg3 {[%emt 0:00:15]} 62. Rg7 {[%emt 0:01:41]} g4 {[%emt 0:00:09]} 63. Rh7 {[%emt 0:00:09]} Kg2 {[%emt 0:00:19]} 64. Rd7 {[%emt 0:00:20]} h2 {[%emt 0:00:24]} 65. Rxd2 {[%emt 0:00:07]} Rxa7 {[%emt 0:00:05]} 0-1

[Event "ISR-chT 2019"]
[Site "Israel"]
[Date "2019.03.08"]
[Round "9.2"]
[White "Poleg, Dan"]
[Black "Shvidler, Eliahu"]
[Result "1/2-1/2"]
[ECO "D36"]
[WhiteElo "2264"]
[BlackElo "2357"]
[Annotator "NA RC"]
[PlyCount "86"]
[EventDate "2019.01.04"]
[EventType "team-tourn"]
[EventCountry "ISR"]
[SourceTitle "playchess.com"]
[Source "ChessBase"]
[SourceQuality "1"]
[TimeControl "40/5400+30:1800+30"]

1. d4 {[%emt 0:00:00]} Nf6 {[%emt 0:05:53]} 2. c4 {[%emt 0:00:00]} e6 {[%emt 0:00:09]} 3. Nf3 {[%emt 0:00:00]} d5 {[%emt 0:00:09]} 4. Nc3 {[%emt 0:00:00]} Nbd7 {[%emt 0:01:34]} 5. Bg5 {[%emt 0:00:04]} c6 {[%emt 0:10:31]} 6. e3 {[%emt 0:00:16]} Be7 {[%emt 0:00:18]} 7. Qc2 {[%emt 0:02:59]} O-O {[%emt 0:01:24]} 8. cxd5 {[%emt 0:00:22]} exd5 {[%emt 0:00:52]} 9. Bd3 {[%emt 0:00:07]} Re8 {[%emt 0:01:28]} 10. Ne5 {[%emt 0:03:41]} Nf8 {[%emt 0:04:36]} 11. O-O {[%emt 0:04:27]} Ng4 {[%emt 0:06:15]} 12. Bf4 {[%emt 0:03:45]} Bd6 {[%emt 0:02:33]} 13. Nxg4 {[%emt 0:00:29]} Bxf4 {[%emt 0:00:32]} 14. exf4 {[%emt 0:00:06]} Bxg4 {[%emt 0:00:11]} 15. f5 {[%emt 0:18:07]} f6 {[%emt 0:06:40]} 16. Na4 {[%emt 0:04:54]} Rc8 {[%emt 0:13:24]} 17. h3 {[%emt 0:01:11]} Bh5 {[%emt 0:00:06]} 18. b4 {[%emt 0:01:29]} Qd6 {[%emt 0:02:34]} 19. Qd2 {[%emt 0:01:04]} Re7 {[%emt 0:01:14]} 20. Rfe1 {[%emt 0:02:03]} Rce8 {[%emt 0:01:30]} 21. Rxe7 {[%emt 0:00:37]} Rxe7 {[%emt 0:00:17]} 22. Nc5 {[%emt 0:00:08]} Bf7 {[%emt 0:05:28]} 23. a4 {[%emt 0:01:02]} g6 {[%emt 0:08:36]} 24. a5 {[%emt 0:12:45]} Kg7 {[%emt 0:01:15]} 25. Rc1 {[%emt 0:07:13]} gxf5 {[%emt 0:03:20]} 26. Bxf5 {[%emt 0:00:19]} Bg6 {[%emt 0:00:26]} 27. Bxg6 {[%emt 0:01:11]} hxg6 {[%emt 0:00:22]} 28. Re1 {[%emt 0:00:58]} b6 {[%emt 0:01:53]} 29. Rxe7+ {[%emt 0:01:17]} Qxe7 {[%emt 0:01:48]} 30. Nd3 {[%emt 0:00:10]} Ne6 {[%emt 0:02:39]} 31. Qc3 {[%emt 0:01:03]} Qd6 {[%emt 0:00:44]} 32. axb6 {[%emt 0:01:49]} axb6 {[%emt 0:00:01]} 33. Qa1 {[%emt 0:00:17]} Nf4 {[%emt 0:03:05]} 34. Nxf4 {[%emt 0:01:20]} Qxf4 {[%emt 0:01:17]} 35. g3 {[%emt 0:01:02]} Qc7 {[%emt 0:00:24]} 36. Qa6 {[%emt 0:00:53]} g5 {[%emt 0:00:35]} 37. Kg2 {[%emt 0:01:34]} Qe7 {[%emt 0:06:21]} 38. Qxb6 {[%emt 0:01:38]} Qe4+ {[%emt 0:02:11]} 39. Kh2 {[%emt 0:00:23]} Qe2 {[%emt 0:00:28]} 40. Kg2 {[%emt 0:01:10]} Qe4+ {[%emt 0:00:18]} 41. Kf1 {[%emt 0:31:30]} Qb1+ {[%emt 0:31:08]} 42. Ke2 {[%emt 0:00:15]} Qc2+ {[%emt 0:00:13]} 43. Ke3 {[%emt 0:00:11]} Qc3+ {[%emt 0:00:26]} 1/2-1/2

[Event "ISR-chT 2019"]
[Site "Israel"]
[Date "2019.03.08"]
[Round "9.3"]
[White "Kundin, Alexander"]
[Black "Tifferet, Shaked"]
[Result "0-1"]
[ECO "B23"]
[WhiteElo "2311"]
[BlackElo "2233"]
[Annotator "NA RC"]
[PlyCount "90"]
[EventDate "2019.01.04"]
[EventType "team-tourn"]
[EventCountry "ISR"]
[SourceTitle "playchess.com"]
[Source "ChessBase"]
[SourceQuality "1"]
[TimeControl "40/5400+30:1800+30"]

1. e4 {[%emt 0:05:24]} c5 {[%emt 0:00:16]} 2. Nc3 {[%emt 0:00:37]} d6 {[%emt 0:00:19]} 3. f4 {[%emt 0:04:38]} Nc6 {[%emt 0:01:27]} 4. Nf3 {[%emt 0:00:39]} g6 {[%emt 0:00:07]} 5. Bc4 {[%emt 0:00:33]} Bg7 {[%emt 0:00:06]} 6. O-O {[%emt 0:01:06]} e6 {[%emt 0:00:29]} 7. d3 {[%emt 0:00:06]} Nge7 {[%emt 0:00:05]} 8. f5 {[%emt 0:04:10]} d5 {[%emt 0:26:08]} 9. Bb3 gxf5 {[%emt 0:09:56]} 10. exd5 {[%emt 0:17:48]} exd5 {[%emt 0:00:13]} 11. Ng5 {[%emt 0:19:25]} h6 {[%emt 0:09:52]} 12. Nh3 {[%emt 0:00:30]} Be6 {[%emt 0:02:14]} 13. Nf4 {[%emt 0:00:33]} Qd7 {[%emt 0:03:45]} 14. Nh5 {[%emt 0:17:38]} Be5 {[%emt 0:09:34]} 15. Bf4 {[%emt 0:00:59]} O-O-O {[%emt 0:00:17]} 16. Qd2 {[%emt 0:13:20]} Bxf4 {[%emt 0:08:21]} 17. Qxf4 {[%emt 0:00:40]} Qc7 {[%emt 0:00:27]} 18. Rae1 {[%emt 0:01:32]} Nd4 {[%emt 0:05:28]} 19. Ne2 {[%emt 0:00:48]} Nec6 {[%emt 0:07:50]} 20. Nxd4 {[%emt 0:01:49]} Nxd4 {[%emt 0:00:08]} 21. c3 {[%emt 0:00:04]} Nxb3 {[%emt 0:00:27]} 22. axb3 {[%emt 0:00:03]} d4 {[%emt 0:04:04]} 23. c4 {[%emt 0:01:23]} Qxf4 {[%emt 0:03:45]} 24. Nxf4 {[%emt 0:00:08]} Kd7 {[%emt 0:03:14]} 25. Re5 {[%emt 0:00:28]} Rc8 {[%emt 0:00:44]} 26. Rfe1 {[%emt 0:01:53]} Rhe8 {[%emt 0:00:25]} 27. Nh5 {[%emt 0:03:40]} Rf8 $11 {[%emt 0:01:19]} 28. Nf4 {[%emt 0:03:02]} Rc6 {[%emt 0:00:22]} 29. Nd5 {[%emt 0:00:02]} f6 {[%emt 0:01:28]} 30. R5e2 {[%emt 0:00:22]} Bxd5 {[%emt 0:00:56]} 31. cxd5 {[%emt 0:00:11]} Rb6 {[%emt 0:00:54]} 32. Re7+ {[%emt 0:01:31]} Kd6 {[%emt 0:00:18]} 33. R1e6+ {[%emt 0:00:03]} Kxd5 {[%emt 0:00:05]} 34. Rxb6 {[%emt 0:00:04]} axb6 {[%emt 0:00:06]} 35. Rxb7 {[%emt 0:00:02]} Kc6 {[%emt 0:01:03]} 36. Rh7 {[%emt 0:00:36]} Kb5 {[%emt 0:00:08]} 37. Rxh6 {[%emt 0:02:06]} Kb4 {[%emt 0:00:02]} 38. Rh5 {[%emt 0:00:32]} Kxb3 {[%emt 0:00:13]} 39. Rxf5 {[%emt 0:00:02]} Kc2 {[%emt 0:01:19]} 40. Rf3 {[%emt 0:00:54]} c4 {[%emt 0:00:08]} 41. dxc4 {[%emt 0:30:36]} d3 {[%emt 0:31:38]} 42. Kf2 {[%emt 0:00:00]} d2 {[%emt 0:00:00]} 43. Rc3+ {[%emt 0:00:00]} Kxb2 {[%emt 0:00:00]} 44. Rd3 {[%emt 0:00:00]} Kc2 {[%emt 0:00:00]} 45. Ke2 {[%emt 0:00:00]} Re8+ {[%emt 0:00:00]} 0-1